[Event "Kragero Resort Chess B 2019"]
[Site "Kragero"]
[Date "2019.02.21"]
[Round "3.2"]
[White "Halvorsen, Benjamin"]
[Black "Manukyan, Hayk T."]
[Result "1-0"]
[ECO "B77"]
[WhiteElo "1683"]
[BlackElo "1806"]
[Annotator "NA"]
[PlyCount "96"]
[EventDate "2019.02.20"]
[EventType "swiss"]
[EventCountry "NOR"]
[SourceTitle "playchess.com"]
[Source "ChessBase"]
[SourceQuality "1"]
[TimeControl "5400+30"]

1. e4 {[%emt 0:00:00]} c5 {[%emt 0:00:00]} 2. Nf3 {[%emt 0:00:00]} g6 {[%emt 0:00:00]} 3. Nc3 {[%emt 0:00:00]} Bg7 {[%emt 0:00:00]} 4. d4 {[%emt 0:00:00]} cxd4 {[%emt 0:00:00]} 5. Nxd4 {[%emt 0:00:05]} Nc6 {[%emt 0:00:00]} 6. Be3 {[%emt 0:00:11]} Nf6 {[%emt 0:00:00]} 7. Bc4 {[%emt 0:00:17]} O-O {[%emt 0:00:00]} 8. Bb3 {[%emt 0:00:51]} d6 {[%emt 0:04:44]} 9. f3 {[%emt 0:01:15]} Bd7 {[%emt 0:00:18]} 10. Qd2 {[%emt 0:00:14]} Na5 {[%emt 0:04:05]} 11. h4 {[%emt 0:07:54]} h5 {[%emt 0:01:05]} 12. O-O-O {[%emt 0:00:52]} Rb8 {[%emt 0:00:17]} 13. Bh6 {[%emt 0:02:17]} b5 {[%emt 0:01:47]} 14. g4 {[%emt 0:05:04]} Nc4 {[%emt 0:00:47]} 15. Bxc4 {[%emt 0:07:39]} bxc4 {[%emt 0:00:03]} 16. Bxg7 {[%emt 0:00:23]} Kxg7 {[%emt 0:00:24]} 17. gxh5 {[%emt 0:00:40]} Nxh5 {[%emt 0:00:04]} 18. Nf5+ {[%emt 0:07:02]} Bxf5 {[%emt 0:00:52]} 19. exf5 {[%emt 0:00:07]} Qb6 {[%emt 0:01:12]} 20. Qd4+ {[%emt 0:13:27]} Qxd4 {[%emt 0:02:27]} 21. Rxd4 {[%emt 0:00:30]} Ng3 {[%emt 0:00:15]} 22. Rg1 {[%emt 0:04:30]} Nxf5 {[%emt 0:00:12]} 23. Rxc4 {[%emt 0:00:11]} Rfc8 {[%emt 0:03:25]} 24. Ra4 {[%emt 0:02:30]} Rb7 {[%emt 0:00:32]} 25. h5 {[%emt 0:01:15]} Rcb8 {[%emt 0:13:04]} 26. b3 {[%emt 0:10:13]} Rc8 {[%emt 0:00:24]} 27. Nd5 {[%emt 0:01:18]} Rb5 {[%emt 0:02:37]} 28. Nf4 {[%emt 0:00:37]} e5 {[%emt 0:00:46]} 29. Nd3 {[%emt 0:14:22]} Nd4 {[%emt 0:01:42]} 30. Rg2 {[%emt 0:01:01]} Nxf3 {[%emt 0:07:46]} 31. Rxa7 {[%emt 0:01:09]} e4 {[%emt 0:01:23]} 32. Rxg6+ {[%emt 0:01:22]} Kh8 {[%emt 0:15:26]} 33. Rxf7 {[%emt 0:00:42]} Nh4 {[%emt 0:18:11]} 34. Rh6+ {[%emt 0:03:58]} Kg8 {[%emt 0:00:14]} 35. Rfh7 {[%emt 0:02:34]} Rc6 {[%emt 0:19:39]} 36. Nf4 {[%emt 0:02:11]} Nf5 {[%emt 0:01:33]} 37. Rh8+ {[%emt 0:00:49]} Kf7 {[%emt 0:00:37]} 38. Rg6 {[%emt 0:02:02]} Re5 {[%emt 0:02:35]} 39. Rh7+ {[%emt 0:00:23]} Kf8 {[%emt 0:00:03]} 40. Ne6+ {[%emt 0:00:24]} Rxe6 {[%emt 0:00:01]} 41. Rxe6 {[%emt 0:00:09]} Kg8 {[%emt 0:01:27]} 42. Ra7 {[%emt 0:00:40]} Rc8 {[%emt 0:00:31]} 43. Rxe4 {[%emt 0:00:36]} d5 {[%emt 0:00:17]} 44. Re5 {[%emt 0:00:15]} Nd4 {[%emt 0:00:06]} 45. Rxd5 {[%emt 0:00:54]} Nxc2 {[%emt 0:00:13]} 46. Kd2 {[%emt 0:00:54]} Nb4 {[%emt 0:00:10]} 47. Rdd7 {[%emt 0:00:31]} Rc2+ {[%emt 0:01:39]} 48. Kd1 {[%emt 0:00:11]} Rc8 {[%emt 0:00:13]} 1-0

[Event "Kragero Resort Chess B 2019"]
[Site "Kragero"]
[Date "2019.02.21"]
[Round "3.3"]
[White "Olsen, William Alexander"]
[Black "Erikstad, Olav"]
[Result "1-0"]
[ECO "C88"]
[WhiteElo "1646"]
[BlackElo "1777"]
[Annotator "NA"]
[PlyCount "61"]
[EventDate "2019.02.20"]
[EventType "swiss"]
[EventCountry "NOR"]
[SourceTitle "playchess.com"]
[Source "ChessBase"]
[SourceQuality "1"]
[TimeControl "5400+30"]

1. e4 {[%emt 0:00:00]} e5 {[%emt 0:00:00]} 2. Nf3 {[%emt 0:00:00]} Nc6 {[%emt 0:00:00]} 3. Bb5 {[%emt 0:00:00]} a6 {[%emt 0:00:00]} 4. Ba4 {[%emt 0:00:00]} Nf6 {[%emt 0:00:00]} 5. d3 {[%emt 0:00:00]} b5 {[%emt 0:00:00]} 6. Bb3 {[%emt 0:00:34]} Be7 {[%emt 0:00:50]} 7. O-O {[%emt 0:00:18]} O-O {[%emt 0:00:03]} 8. a4 {[%emt 0:00:21]} Bb7 {[%emt 0:03:10]} 9. Nbd2 {[%emt 0:01:26]} d6 {[%emt 0:00:44]} 10. c3 {[%emt 0:00:49]} Qd7 {[%emt 0:06:32]} 11. Re1 {[%emt 0:03:08]} Na5 {[%emt 0:04:54]} 12. Bc2 {[%emt 0:01:54]} c5 {[%emt 0:00:33]} 13. Nf1 {[%emt 0:01:21]} Nc6 {[%emt 0:02:34]} 14. Ng3 {[%emt 0:05:19]} b4 {[%emt 0:03:37]} 15. d4 {[%emt 0:07:38]} bxc3 {[%emt 0:03:35]} 16. bxc3 {[%emt 0:00:36]} cxd4 {[%emt 0:00:28]} 17. cxd4 {[%emt 0:00:09]} exd4 {[%emt 0:02:46]} 18. Nxd4 {[%emt 0:00:10]} Rac8 {[%emt 0:02:02]} 19. Bb2 {[%emt 0:04:56]} Rc7 {[%emt 0:06:50]} 20. Rc1 {[%emt 0:06:13]} Rfc8 {[%emt 0:02:19]} 21. e5 {[%emt 0:02:34]} Nxd4 {[%emt 0:04:42]} 22. exf6 {[%emt 0:16:29]} Nxc2 {[%emt 0:03:40]} 23. Rxe7 {[%emt 0:02:46]} Qc6 {[%emt 0:00:06]} 24. Qf3 {[%emt 0:04:55]} Qxf3 {[%emt 0:07:13]} 25. gxf3 {[%emt 0:00:14]} gxf6 {[%emt 0:01:19]} 26. Nf5 {[%emt 0:01:54]} Bxf3 {[%emt 0:08:12]} 27. Bxf6 {[%emt 0:03:52]} d5 {[%emt 0:06:40]} 28. Rb1 {[%emt 0:05:38]} Nb4 {[%emt 0:03:51]} 29. Rbe1 {[%emt 0:02:58]} Rc1 {[%emt 0:01:26]} 30. Nh6+ {[%emt 0:00:09]} Kf8 {[%emt 0:00:24]} 31. Rxf7# {[%emt 0:00:07]} 1-0

[Event "Kragero Resort Chess B 2019"]
[Site "Kragero"]
[Date "2019.02.21"]
[Round "3.4"]
[White "Nordquelle, Amelia"]
[Black "Hausken, Andreas Skrede"]
[Result "0-1"]
[ECO "E32"]
[WhiteElo "1585"]
[BlackElo "1752"]
[Annotator "NA"]
[PlyCount "104"]
[EventDate "2019.02.20"]
[EventType "swiss"]
[EventCountry "NOR"]
[SourceTitle "playchess.com"]
[Source "ChessBase"]
[SourceQuality "1"]
[TimeControl "5400+30"]

1. d4 {[%emt 0:00:00]} Nf6 {[%emt 0:00:00]} 2. c4 {[%emt 0:00:00]} e6 {[%emt 0:00:00]} 3. Nc3 {[%emt 0:00:03]} Bb4 {[%emt 0:00:10]} 4. Qc2 {[%emt 0:00:06]} b6 {[%emt 0:01:07]} 5. f3 {[%emt 0:01:25]} c5 {[%emt 0:01:51]} 6. e3 {[%emt 0:01:35]} O-O {[%emt 0:04:18]} 7. Bd3 {[%emt 0:00:16]} cxd4 {[%emt 0:07:30]} 8. exd4 {[%emt 0:00:15]} h6 {[%emt 0:00:13]} 9. Nge2 {[%emt 0:00:43]} d5 {[%emt 0:00:32]} 10. O-O {[%emt 0:01:17]} Bb7 {[%emt 0:04:35]} 11. Be3 {[%emt 0:00:40]} Nc6 {[%emt 0:08:54]} 12. Rad1 {[%emt 0:00:32]} dxc4 {[%emt 0:03:57]} 13. Bxc4 {[%emt 0:00:13]} Ne7 {[%emt 0:00:11]} 14. Nf4 {[%emt 0:02:00]} Ned5 {[%emt 0:00:49]} 15. Ncxd5 {[%emt 0:00:33]} Nxd5 {[%emt 0:00:13]} 16. Nxd5 {[%emt 0:01:54]} Bxd5 {[%emt 0:00:17]} 17. Qb3 {[%emt 0:00:29]} Be7 {[%emt 0:01:59]} 18. Bxd5 {[%emt 0:00:34]} Qxd5 {[%emt 0:00:10]} 19. Qxd5 {[%emt 0:00:06]} exd5 {[%emt 0:00:04]} 20. Rc1 {[%emt 0:00:44]} Rac8 {[%emt 0:00:22]} 21. Kf2 {[%emt 0:00:26]} Bf6 {[%emt 0:01:08]} 22. Ke2 {[%emt 0:00:29]} Rfe8 {[%emt 0:01:14]} 23. Kd3 {[%emt 0:00:13]} b5 {[%emt 0:03:03]} 24. Rxc8 {[%emt 0:01:23]} Rxc8 {[%emt 0:00:15]} 25. Rc1 {[%emt 0:00:04]} Rxc1 {[%emt 0:01:22]} 26. Bxc1 {[%emt 0:00:05]} Kf8 {[%emt 0:00:06]} 27. Bd2 {[%emt 0:00:16]} Ke7 {[%emt 0:00:23]} 28. Bb4+ {[%emt 0:00:31]} Kd7 {[%emt 0:00:32]} 29. Bc5 {[%emt 0:00:45]} a6 {[%emt 0:00:30]} 30. b3 {[%emt 0:02:37]} h5 {[%emt 0:01:14]} 31. Kc3 {[%emt 0:02:54]} Kc6 {[%emt 0:00:34]} 32. a4 {[%emt 0:10:47]} g6 {[%emt 0:02:37]} 33. a5 {[%emt 0:06:49]} Kd7 {[%emt 0:00:35]} 34. Kd3 {[%emt 0:01:00]} Ke6 {[%emt 0:00:44]} 35. Ke3 {[%emt 0:01:03]} Bd8 {[%emt 0:00:28]} 36. b4 {[%emt 0:00:25]} Kf5 {[%emt 0:00:28]} 37. g3 {[%emt 0:01:28]} g5 {[%emt 0:00:53]} 38. h3 {[%emt 0:01:16]} g4 {[%emt 0:00:24]} 39. fxg4+ {[%emt 0:00:32]} hxg4 {[%emt 0:00:39]} 40. h4 {[%emt 0:00:24]} Bf6 {[%emt 0:00:28]} 41. Bd6 {[%emt 0:05:43]} Bg7 {[%emt 0:00:38]} 42. h5 {[%emt 0:10:11]} Kg5 {[%emt 0:04:07]} 43. Bc5 {[%emt 0:00:00]} f5 {[%emt 0:00:44]} 44. Be7+ {[%emt 0:04:21]} Kxh5 {[%emt 0:01:19]} 45. Kf4 {[%emt 0:00:09]} Kg6 {[%emt 0:00:48]} 46. Bc5 {[%emt 0:07:05]} Kf6 {[%emt 0:01:30]} 47. Ke3 {[%emt 0:00:28]} Bh6+ {[%emt 0:00:08]} 48. Kf2 {[%emt 0:02:59]} f4 {[%emt 0:00:30]} 49. gxf4 {[%emt 0:00:41]} Bxf4 {[%emt 0:00:10]} 50. Ke2 {[%emt 0:07:30]} Kf5 {[%emt 0:01:02]} 51. Kd3 {[%emt 0:00:27]} g3 {[%emt 0:00:08]} 52. Ke2 {[%emt 0:00:07]} Ke4 {[%emt 0:00:06]} 0-1

[Event "Kragero Resort Chess B 2019"]
[Site "Kragero"]
[Date "2019.02.21"]
[Round "3.5"]
[White "Kveim, Ingvar Torjesen"]
[Black "Wright, Haakon"]
[Result "0-1"]
[ECO "B34"]
[WhiteElo "1372"]
[BlackElo "1750"]
[Annotator "NA"]
[PlyCount "86"]
[EventDate "2019.02.20"]
[EventType "swiss"]
[EventCountry "NOR"]
[SourceTitle "playchess.com"]
[Source "ChessBase"]
[SourceQuality "1"]
[TimeControl "5400+30"]

1. e4 {[%emt 0:00:00]} c5 {[%emt 0:00:00]} 2. Nf3 {[%emt 0:00:00]} g6 {[%emt 0:00:00]} 3. d4 {[%emt 0:00:00]} cxd4 {[%emt 0:00:00]} 4. Nxd4 {[%emt 0:00:07]} Nc6 {[%emt 0:00:00]} 5. Be3 {[%emt 0:00:11]} Bg7 {[%emt 0:00:00]} 6. Nc3 {[%emt 0:00:27]} Nf6 {[%emt 0:00:00]} 7. Be2 {[%emt 0:00:22]} O-O {[%emt 0:01:26]} 8. Qd2 {[%emt 0:00:54]} d5 {[%emt 0:01:57]} 9. Nxc6 {[%emt 0:01:25]} bxc6 {[%emt 0:00:05]} 10. e5 {[%emt 0:00:46]} Nd7 {[%emt 0:06:40]} 11. Bh6 {[%emt 0:01:15]} Nxe5 {[%emt 0:04:36]} 12. Bxg7 {[%emt 0:00:33]} Kxg7 {[%emt 0:00:05]} 13. Qd4 {[%emt 0:15:10]} f6 {[%emt 0:00:36]} 14. f4 {[%emt 0:02:10]} Nf7 {[%emt 0:02:39]} 15. g4 {[%emt 0:14:51]} Qb6 {[%emt 0:01:34]} 16. Qd3 {[%emt 0:15:25]} e5 {[%emt 0:03:32]} 17. f5 {[%emt 0:01:14]} g5 {[%emt 0:04:39]} 18. O-O-O {[%emt 0:07:30]} a5 {[%emt 0:04:57]} 19. h4 {[%emt 0:05:10]} h6 {[%emt 0:01:36]} 20. hxg5 {[%emt 0:00:42]} hxg5 {[%emt 0:00:20]} 21. Rh7+ {[%emt 0:09:26]} Kxh7 {[%emt 0:03:06]} 22. Qh3+ {[%emt 0:00:07]} Kg7 {[%emt 0:00:21]} 23. Qh5 {[%emt 0:03:06]} Rh8 {[%emt 0:00:42]} 24. Qg6+ {[%emt 0:00:13]} Kf8 {[%emt 0:00:02]} 25. Qxf6 {[%emt 0:08:42]} Rh6 {[%emt 0:03:07]} 26. Nxd5 {[%emt 0:03:35]} cxd5 {[%emt 0:00:11]} 27. Qxb6 {[%emt 0:00:11]} Rxb6 {[%emt 0:00:02]} 28. Rxd5 {[%emt 0:00:37]} Rd6 {[%emt 0:01:11]} 29. Rc5 {[%emt 0:00:13]} Ke7 {[%emt 0:04:05]} 30. Bf3 {[%emt 0:03:49]} Rda6 {[%emt 0:01:03]} 31. Rc7+ {[%emt 0:00:58]} Kf6 {[%emt 0:00:29]} 32. Bd5 {[%emt 0:00:50]} Nd6 {[%emt 0:04:44]} 33. Rh7 {[%emt 0:01:01]} Bxf5 {[%emt 0:03:10]} 34. gxf5 {[%emt 0:00:41]} Kxf5 {[%emt 0:00:16]} 35. c4 {[%emt 0:01:18]} Rc8 {[%emt 0:04:56]} 36. b3 {[%emt 0:00:31]} a4 {[%emt 0:00:32]} 37. Rh6 {[%emt 0:00:28]} axb3 {[%emt 0:00:42]} 38. axb3 {[%emt 0:00:13]} Rb6 {[%emt 0:05:10]} 39. Be6+ {[%emt 0:00:42]} Kf4 {[%emt 0:03:07]} 40. Bxc8 {[%emt 0:00:17]} Nxc8 {[%emt 0:00:05]} 41. Rxb6 {[%emt 0:00:09]} Nxb6 {[%emt 0:00:13]} 42. c5 {[%emt 0:00:11]} Nd5 {[%emt 0:00:19]} 43. c6 {[%emt 0:00:11]} Nc7 {[%emt 0:00:02]} 0-1

[Event "Kragero Resort Chess B 2019"]
[Site "Kragero"]
[Date "2019.02.21"]
[Round "3.6"]
[White "Bernstein, Jonas August"]
[Black "Austad, Eirik"]
[Result "1/2-1/2"]
[ECO "E80"]
[WhiteElo "1744"]
[BlackElo "1629"]
[Annotator "NA"]
[PlyCount "104"]
[EventDate "2019.02.20"]
[EventType "swiss"]
[EventCountry "NOR"]
[SourceTitle "playchess.com"]
[Source "ChessBase"]
[SourceQuality "1"]
[TimeControl "5400+30"]

1. d4 {[%emt 0:00:00]} Nf6 {[%emt 0:00:00]} 2. c4 {[%emt 0:00:00]} g6 {[%emt 0:00:06]} 3. Nc3 {[%emt 0:00:04]} Bg7 {[%emt 0:00:15]} 4. e4 {[%emt 0:01:06]} d6 {[%emt 0:00:30]} 5. f3 {[%emt 0:03:38]} h5 {[%emt 0:13:20]} 6. Nge2 {[%emt 0:01:42]} Na6 {[%emt 0:05:04]} 7. Be3 {[%emt 0:02:14]} c5 {[%emt 0:02:20]} 8. Qd2 {[%emt 0:04:22]} Bd7 {[%emt 0:24:24]} 9. d5 {[%emt 0:26:15]} Nc7 {[%emt 0:08:09]} 10. a4 {[%emt 0:03:47]} a6 {[%emt 0:03:32]} 11. a5 {[%emt 0:00:54]} Qb8 {[%emt 0:02:40]} 12. e5 {[%emt 0:04:10]} Ng8 {[%emt 0:08:57]} 13. exd6 {[%emt 0:00:59]} exd6 {[%emt 0:01:08]} 14. Ne4 {[%emt 0:02:08]} Ke7 {[%emt 0:04:12]} 15. N2c3 {[%emt 0:37:22]} Ne8 {[%emt 0:04:52]} 16. Bf4 {[%emt 0:02:43]} Bh6 {[%emt 0:01:35]} 17. Bd3 {[%emt 0:03:17]} b5 {[%emt 0:01:48]} 18. axb6 {[%emt 0:01:16]} Qxb6 {[%emt 0:00:21]} 19. Bxh6 {[%emt 0:00:56]} Nxh6 {[%emt 0:00:33]} 20. O-O {[%emt 0:00:57]} Kf8 {[%emt 0:02:31]} 21. Qf4 {[%emt 0:00:50]} Kg7 {[%emt 0:02:19]} 22. Rfe1 {[%emt 0:00:46]} Nf5 {[%emt 0:01:10]} 23. Rab1 {[%emt 0:00:52]} h4 {[%emt 0:01:43]} 24. Ng5 {[%emt 0:00:30]} Qd8 {[%emt 0:02:40]} 25. Bxf5 {[%emt 0:01:02]} Bxf5 {[%emt 0:00:21]} 26. Ra1 {[%emt 0:00:03]} Qf6 {[%emt 0:02:03]} 27. Nge4 {[%emt 0:00:16]} Qd4+ {[%emt 0:00:24]} 28. Qe3 {[%emt 0:00:36]} Qxc4 {[%emt 0:01:00]} 29. Nxd6 {[%emt 0:00:42]} Nxd6 {[%emt 0:01:11]} 30. Qe5+ {[%emt 0:00:01]} Kg8 {[%emt 0:01:00]} 31. Qxd6 {[%emt 0:00:09]} Qd4+ {[%emt 0:00:20]} 32. Kh1 {[%emt 0:00:26]} h3 {[%emt 0:00:58]} 33. g4 {[%emt 0:01:39]} Bc8 {[%emt 0:03:05]} 34. Re8+ {[%emt 0:00:32]} Kh7 {[%emt 0:01:24]} 35. Rxh8+ {[%emt 0:00:23]} Kxh8 {[%emt 0:00:37]} 36. Qf8+ {[%emt 0:00:13]} Kh7 {[%emt 0:00:14]} 37. Qxf7+ {[%emt 0:00:45]} Qg7 {[%emt 0:00:49]} 38. Qxg7+ {[%emt 0:00:28]} Kxg7 {[%emt 0:00:04]} 39. Ne4 {[%emt 0:00:34]} Bb7 {[%emt 0:00:39]} 40. Rd1 {[%emt 0:00:31]} Rd8 {[%emt 0:00:40]} 41. d6 {[%emt 0:00:20]} Bxe4 {[%emt 0:00:22]} 42. fxe4 {[%emt 0:00:01]} Kf6 {[%emt 0:00:09]} 43. Rd5 {[%emt 0:01:16]} Ke6 {[%emt 0:00:47]} 44. Rxc5 {[%emt 0:00:33]} Rxd6 {[%emt 0:00:22]} 45. Rc1 {[%emt 0:00:25]} Ke5 {[%emt 0:00:21]} 46. Re1 {[%emt 0:00:07]} Rd2 {[%emt 0:00:27]} 47. Kg1 {[%emt 0:00:42]} Rxb2 {[%emt 0:00:25]} 48. Ra1 {[%emt 0:00:38]} Rg2+ {[%emt 0:00:46]} 49. Kf1 {[%emt 0:00:30]} Rxg4 {[%emt 0:00:56]} 50. Rxa6 {[%emt 0:00:21]} Kxe4 {[%emt 0:00:12]} 51. Ra3 {[%emt 0:00:52]} Rf4+ {[%emt 0:00:53]} 52. Ke2 {[%emt 0:00:26]} Kf5 {[%emt 0:00:27] Kf1 [%emt 00:00:27]} 1/2-1/2

[Event "Kragero Resort Chess B 2019"]
[Site "Kragero"]
[Date "2019.02.21"]
[Round "3.8"]
[White "Leonhardsen, Vebjorn Maanum"]
[Black "Amarapala, Sheroni"]
[Result "1-0"]
[ECO "A20"]
[WhiteElo "1748"]
[BlackElo "1514"]
[Annotator "NA"]
[PlyCount "85"]
[EventDate "2019.02.20"]
[EventType "swiss"]
[EventCountry "NOR"]
[SourceTitle "playchess.com"]
[Source "ChessBase"]
[SourceQuality "1"]
[TimeControl "5400+30"]

1. c4 {[%emt 0:00:00]} e5 {[%emt 0:00:00]} 2. g3 {[%emt 0:00:00]} Nf6 {[%emt 0:00:51]} 3. Bg2 {[%emt 0:00:14]} Bc5 {[%emt 0:00:48]} 4. e3 {[%emt 0:02:11]} O-O {[%emt 0:03:29]} 5. Ne2 {[%emt 0:00:15]} d5 {[%emt 0:01:56]} 6. cxd5 {[%emt 0:01:51]} Nxd5 {[%emt 0:00:47]} 7. a3 {[%emt 0:02:28]} a5 {[%emt 0:01:10]} 8. Nbc3 {[%emt 0:00:33]} Nxc3 {[%emt 0:02:06]} 9. bxc3 {[%emt 0:00:38]} Nd7 {[%emt 0:01:13]} 10. O-O {[%emt 0:00:35]} Nf6 {[%emt 0:02:55]} 11. d4 {[%emt 0:02:11]} exd4 {[%emt 0:01:02]} 12. cxd4 {[%emt 0:00:31]} Bb6 {[%emt 0:01:38]} 13. Qc2 {[%emt 0:01:08]} c6 {[%emt 0:01:34]} 14. Bb2 {[%emt 0:01:26]} Bg4 {[%emt 0:02:56]} 15. Nc3 {[%emt 0:01:08]} Re8 {[%emt 0:04:59]} 16. Na4 {[%emt 0:00:40]} Bc7 {[%emt 0:00:49]} 17. Nc5 {[%emt 0:00:56]} Rb8 {[%emt 0:01:27]} 18. Rfe1 {[%emt 0:07:50]} Qc8 {[%emt 0:04:52]} 19. e4 {[%emt 0:07:57]} Bh3 {[%emt 0:01:25]} 20. Bc3 {[%emt 0:04:10]} Bxg2 {[%emt 0:06:53]} 21. Kxg2 {[%emt 0:00:04]} Qg4 {[%emt 0:00:22]} 22. f3 {[%emt 0:01:11]} Qg6 {[%emt 0:00:52]} 23. Rab1 {[%emt 0:04:50]} Nd5 {[%emt 0:04:52]} 24. Bd2 {[%emt 0:10:40]} b6 {[%emt 0:03:34]} 25. Na6 {[%emt 0:00:57]} Rbc8 {[%emt 0:04:29]} 26. Nxc7 {[%emt 0:01:32]} Rxc7 {[%emt 0:00:52]} 27. exd5 {[%emt 0:01:59]} Rxe1 {[%emt 0:01:34]} 28. Rxe1 {[%emt 0:00:13]} Rc8 {[%emt 0:01:24]} 29. Qxg6 {[%emt 0:00:14]} hxg6 {[%emt 0:00:14]} 30. Rc1 {[%emt 0:00:22]} Kf8 {[%emt 0:03:19]} 31. dxc6 {[%emt 0:00:29]} Ke7 {[%emt 0:00:27]} 32. d5 {[%emt 0:00:36]} Kd6 {[%emt 0:00:23]} 33. Bf4+ {[%emt 0:00:40]} Kxd5 {[%emt 0:01:05]} 34. c7 {[%emt 0:00:10]} Ke6 {[%emt 0:00:19]} 35. Rc6+ {[%emt 0:00:51]} Kd7 {[%emt 0:01:26]} 36. Rxb6 {[%emt 0:01:41]} f6 {[%emt 0:02:57]} 37. Rb8 {[%emt 0:00:31]} Rxc7 {[%emt 0:00:31]} 38. Bxc7 {[%emt 0:00:06]} Kxc7 {[%emt 0:00:03]} 39. Rb5 {[%emt 0:00:30]} Kc6 {[%emt 0:00:15]} 40. Rxa5 {[%emt 0:00:05]} Kb6 {[%emt 0:00:13]} 41. Ra8 {[%emt 0:00:08]} Kb5 {[%emt 0:00:36]} 42. Rg8 {[%emt 0:00:10]} Ka4 {[%emt 0:00:15]} 43. Rxg7 {[%emt 0:00:06]} 1-0

[Event "Kragero Resort Chess B 2019"]
[Site "Kragero"]
[Date "2019.02.22"]
[Round "4.1"]
[White "Hausken, Andreas Skrede"]
[Black "Halvorsen, Benjamin"]
[Result "0-1"]
[ECO "B07"]
[WhiteElo "1752"]
[BlackElo "1683"]
[Annotator "NA"]
[PlyCount "48"]
[EventDate "2019.02.20"]
[EventType "swiss"]
[EventCountry "NOR"]
[SourceTitle "playchess.com"]
[Source "ChessBase"]
[SourceQuality "1"]
[TimeControl "5400+30"]

1. e4 {[%emt 0:00:00]} d6 {[%emt 0:00:00]} 2. d4 {[%emt 0:00:21]} Nf6 {[%emt 0:00:00]} 3. Nc3 {[%emt 0:00:07]} g6 {[%emt 0:00:00]} 4. Be3 {[%emt 0:01:54]} c6 {[%emt 0:00:00]} 5. Nf3 {[%emt 0:00:47]} b5 {[%emt 0:05:30]} 6. Bd3 {[%emt 0:03:49]} Bg4 {[%emt 0:01:32]} 7. h3 {[%emt 0:01:09]} Bxf3 {[%emt 0:00:06]} 8. Qxf3 {[%emt 0:00:14]} Bg7 {[%emt 0:00:20]} 9. Ne2 {[%emt 0:13:04]} O-O {[%emt 0:03:48]} 10. g4 {[%emt 0:02:06]} Nbd7 {[%emt 0:11:42]} 11. g5 {[%emt 0:05:10]} Nh5 {[%emt 0:00:32]} 12. Ng3 {[%emt 0:01:01]} Nxg3 {[%emt 0:00:22]} 13. Qxg3 {[%emt 0:00:44]} e5 {[%emt 0:01:37]} 14. c3 {[%emt 0:10:38]} Qa5 {[%emt 0:14:59]} 15. Bd2 {[%emt 0:06:36]} Qa4 {[%emt 0:06:55]} 16. O-O {[%emt 0:08:28]} exd4 {[%emt 0:13:01]} 17. Qxd6 {[%emt 0:07:30]} Ne5 {[%emt 0:00:35]} 18. Be2 {[%emt 0:03:06]} d3 {[%emt 0:00:44]} 19. Bd1 {[%emt 0:00:54]} Qxe4 {[%emt 0:00:26]} 20. f3 {[%emt 0:01:57]} Qh4 {[%emt 0:02:25]} 21. Kg2 {[%emt 0:01:19]} Rad8 {[%emt 0:06:21]} 22. Qxf8+ {[%emt 0:03:37]} Bxf8 {[%emt 0:03:01]} 23. f4 {[%emt 0:00:16]} Nc4 {[%emt 0:00:30]} 24. Be1 {[%emt 0:04:34]} Ne3+ {[%emt 0:00:10]} 0-1

[Event "Kragero Resort Chess B 2019"]
[Site "Kragero"]
[Date "2019.02.22"]
[Round "4.2"]
[White "Wright, Haakon"]
[Black "Olsen, William Alexander"]
[Result "1-0"]
[ECO "A23"]
[WhiteElo "1750"]
[BlackElo "1646"]
[Annotator "NA"]
[PlyCount "55"]
[EventDate "2019.02.20"]
[EventType "swiss"]
[EventCountry "NOR"]
[SourceTitle "playchess.com"]
[Source "ChessBase"]
[SourceQuality "1"]
[TimeControl "5400+30"]

1. c4 {[%emt 0:00:00]} e5 {[%emt 0:00:00]} 2. g3 {[%emt 0:00:00]} Nf6 {[%emt 0:00:00]} 3. Bg2 {[%emt 0:00:00]} Bc5 {[%emt 0:00:00]} 4. Nc3 {[%emt 0:00:00]} c6 {[%emt 0:00:00]} 5. d3 {[%emt 0:00:57]} O-O {[%emt 0:01:29]} 6. Nf3 {[%emt 0:01:02]} Re8 {[%emt 0:00:08]} 7. O-O {[%emt 0:02:34]} h6 {[%emt 0:09:30]} 8. Nxe5 {[%emt 0:06:36]} Bxf2+ {[%emt 0:00:00]} 9. Rxf2 {[%emt 0:00:48]} Rxe5 {[%emt 0:00:00]} 10. e4 {[%emt 0:05:38]} d6 {[%emt 0:00:00]} 11. h3 {[%emt 0:03:32]} Na6 {[%emt 0:01:52]} 12. Qf3 {[%emt 0:07:58]} Kh7 {[%emt 0:09:49]} 13. g4 {[%emt 0:05:22]} Be6 {[%emt 0:04:34]} 14. d4 {[%emt 0:03:30]} Ra5 {[%emt 0:00:08]} 15. d5 {[%emt 0:02:28]} Bc8 {[%emt 0:09:33]} 16. g5 {[%emt 0:04:43]} Nd7 {[%emt 0:01:18]} 17. Qf5+ {[%emt 0:02:26]} Kh8 {[%emt 0:00:27]} 18. gxh6 {[%emt 0:02:52]} Ne5 {[%emt 0:00:54]} 19. hxg7+ {[%emt 0:00:38]} Kxg7 {[%emt 0:00:20]} 20. Qh5 {[%emt 0:02:30]} Qh8 {[%emt 0:01:13]} 21. Qg5+ {[%emt 0:03:25]} Ng6 {[%emt 0:00:12]} 22. Qf6+ {[%emt 0:00:23]} Kh7 {[%emt 0:01:53]} 23. Qxf7+ {[%emt 0:02:31]} Qg7 {[%emt 0:00:00]} 24. Qf3 {[%emt 0:06:24]} Bd7 {[%emt 0:00:00]} 25. Qh5+ {[%emt 0:01:22]} Kg8 {[%emt 0:00:00]} 26. Bh6 {[%emt 0:01:31]} Qh7 {[%emt 0:00:41]} 27. Raf1 {[%emt 0:00:47]} Re8 {[%emt 0:01:33]} 28. Rf6 {[%emt 0:01:55]} 1-0